lending/lending_fUSD_20240731
["ID","MTS","AMOUNT","RATE_DAILY","PERIOD"]
[333761127,1722457842965,-1000.0,0.00011,2]
[333761128,1722457842974,-1000.0,0.00011,2]
[333761129,1722457842984,-287.64105914,0.00011,2]
[333761130,1722457842993,-2000.0,0.00011,2]
[333761131,1722457843002,-2000.0,0.00011,2]
[333761132,1722457843012,-2000.0,0.00011,2]
[333761133,1722457843021,-308222.7640188,0.00011,2]
[333761134,1722457843030,-2578282.82130234,0.00011,2]
[333761154,1722457843046,-6925.93042756,0.00011,2]
[333761158,1722457843276,-16543.27239479,0.00011,2]
[333761160,1722457843288,-1016.89946502,0.00011,2]
[333761164,1722457843304,-35997.07677936,0.00011,2]
[333761167,1722457843316,-32367.3476292,0.00011,2]
[333761170,1722457843327,-285.24212946,0.00011,2]
[333761174,1722457843346,-1167.30327188,0.00011,2]
[333761177,1722457843357,-490.28,0.00011,2]
[333761292,1722457844399,-789.0,0.000109,2]
[333761294,1722457844408,-239312.81990412,0.00011,2]
[333761296,1722457844419,-360.80937151,0.00011,2]
[333761298,1722457844431,-13006.0,0.00011,2]
[333761309,1722457844531,-31482.02051374,0.00011,2]
[333761311,1722457844543,-3259.0,0.00011,2]
[333761314,1722457844554,-1243.9391314,0.00011,2]
[333761320,1722457844604,-4611.35208609,0.00011,2]
[333761323,1722457844626,-9222.23602632,0.00011,2]
[333761327,1722457844650,-10545.8422,0.00011,2]
[333761330,1722457844672,-833.64,0.00011,2]
[333761333,1722457844692,-5877.70228224,0.00011,2]
[333761336,1722457844709,-420944.96768108,0.00011,2]
[333761339,1722457844730,-217885.8631863,0.00011,2]
[333761343,1722457844755,-3055.59929836,0.00011,2]
[333761345,1722457844770,-5209.45666719,0.00011,2]
[333761349,1722457844790,-16505.11695513,0.00011,2]
[333761351,1722457844809,-49852.91518129,0.00011,2]
[333761354,1722457844828,-2301.96718752,0.00011,2]
[333761375,1722457845021,-1951.95,0.00011,2]
[333761377,1722457845039,-384.76307743,0.00011,2]
[333761378,1722457845057,-25996.01986348,0.00011,2]
[333761379,1722457845077,-909.46141152,0.00011,2]
[333761380,1722457845096,-9250.7235472,0.00011,2]
[333761381,1722457845115,-93778.16358064,0.00011,2]
[333761383,1722457845135,-384.34999965,0.00011,2]
[333761386,1722457845153,-13010.4,0.00011,2]
[333761882,1722457849347,-480.7609,0.000106,2]
[333761884,1722457849357,-139.4093649,0.000109,2]
[333761890,1722457849403,-498.83619787,0.000109,2]
[333761892,1722457849415,-1623.775,0.000109,2]
[333761896,1722457849441,-831.51467711,0.000109,2]
[333761898,1722457849456,-532.56831109,0.000109,2]
[333761901,1722457849468,-89.14772365,0.000109,2]
[333761902,1722457849478,-571.17456948,0.00011,2]
[333761907,1722457849518,-600.0,0.00011,2]
[333761920,1722457849639,-20236.81,0.00011,2]
[333761922,1722457849651,-683.97176608,0.00011,2]
[333761928,1722457849705,-1949.49770095,0.00011,2]
[333761929,1722457849717,-735.64902303,0.00011,2]
[333761930,1722457849730,-164860.14060735,0.00011,2]
[333761931,1722457849740,-95139.85939264,0.00011,2]
[333761932,1722457849756,-337.08969517,0.00011,2]
[333761933,1722457849771,-32510.00000001,0.00011,2]
[333761934,1722457849783,-1110.09918546,0.00011,2]
[333761935,1722457849795,-820.90573202,0.00011,2]
[333761936,1722457849806,-4643.04396127,0.00011,2]
[333761937,1722457849818,-4870.5,0.00011,2]
[333761938,1722457849829,-547.84176427,0.00011,2]
[333762636,1722457873400,423.0,0.0001789,120]
[333762637,1722457873920,423.0,0.0001788,120]
[333762638,1722457874388,423.0,0.0001787,120]
[333762639,1722457874880,423.0,0.0001789,120]
[333762640,1722457875344,423.0,0.0001788,120]
[333762641,1722457875924,423.0,0.0001787,120]
[333762642,1722457876398,423.0,0.0001789,120]
[333762643,1722457876858,423.0,0.0001788,120]
[333762644,1722457877395,423.0,0.0001789,120]
[333762645,1722457877847,426.0,0.0001788,120]
[333762653,1722457992967,150.5,0.0001789,120]
[333762654,1722457993445,150.5,0.0001788,120]
[333762655,1722457993920,150.5,0.0001787,120]
[333762656,1722457994453,181.5,0.0001789,120]
[333762666,1722458468073,164.87,0.0001337,30]
[333762668,1722458572081,157.080105,0.00025,63]
[333762669,1722458573760,157.080105,0.00025,63]
[333762670,1722458574753,157.080105,0.00025,63]
[333762671,1722458578148,157.080105,0.00025,64]
[333762672,1722458578824,157.080105,0.00025,64]
[333762673,1722458579671,157.080105,0.00025,64]
[333762674,1722458583732,157.080105,0.00025,65]
[333762675,1722458584549,157.080105,0.00025,65]
[333762676,1722458585427,157.080105,0.00025,65]
[333762677,1722458589394,157.080105,0.00025,66]
[333762678,1722458590785,157.080105,0.00025,66]
[333762679,1722458591200,157.080105,0.00025,66]
[333762680,1722458611102,157.080105,0.00027,120]
[333762681,1722458622684,157.080105,0.00027,120]
[333762682,1722458649189,218.080105,0.00027,120]
[333762689,1722458937979,1395.61720933,0.00027,120]
[333762696,1722459031984,-746.33,8.219e-05,2]
[333762697,1722459031994,-304.55,9.275e-05,2]
[333762698,1722459032003,-300.0,9.288e-05,2]
[333762699,1722459032013,-1103.63753879,9.289e-05,2]
[333762700,1722459032023,-955.88246121,9.289e-05,2]
[333762701,1722459032098,-2480.12615262,9.289e-05,2]
[333762702,1722459032153,-5405.95989758,9.289e-05,2]
[333762703,1722459032164,-4572.824256,9.289e-05,2]
[333762704,1722459032176,-278.41723259,9.289e-05,2]
[333762705,1722459032185,-500.0,9.298e-05,2]
[333762706,1722459032194,-182.61,9.617e-05,2]
[333762707,1722459032203,-103.22534975,9.67e-05,2]
[333762708,1722459032215,-424.77465025,9.67e-05,2]
[333762709,1722459032224,-206.89638975,9.678e-05,2]
[333762710,1722459032250,-43.10361025,9.678e-05,2]
[333762711,1722459032259,-343.91927996,9.81e-05,2]
[333762712,1722459032282,-128.08072004,9.81e-05,2]
[333762713,1722459032292,-184.24,9.872e-05,2]
[333762714,1722459032301,-11.42427996,9.888e-05,2]
[333762715,1722459032312,-138.57572004,9.888e-05,2]
[333762716,1722459032322,-150.0,9.888e-05,2]
[333762718,1722459032331,-150.0,9.888e-05,2]
[333762719,1722459032340,-150.0,9.888e-05,2]
[333762721,1722459032350,-150.0,9.888e-05,2]
[333762723,1722459032359,-150.0,9.888e-05,2]
[333762724,1722459032368,-1666.81,9.888e-05,2]
[333762725,1722459032377,-499.99,9.888e-05,2]
[333762726,1722459032387,-150.0,9.903e-05,2]
[333762727,1722459032396,-150.0,9.919e-05,2]
[333762728,1722459032406,-150.0,9.935e-05,2]
[333762729,1722459032415,-168.01,9.943e-05,2]
[333762730,1722459032425,-150.0,9.945e-05,2]
[333762731,1722459032434,-150.0,9.95e-05,2]
[333762732,1722459032443,-150.0,9.952e-05,2]
[333762733,1722459032454,-150.0,9.966e-05,2]
[333762734,1722459032464,-150.0,9.982e-05,2]
[333762735,1722459032474,-168.01,9.993e-05,2]
[333762736,1722459032483,-150.0,9.998e-05,2]
[333762737,1722459032492,-1250.0,0.0001,2]
[333762738,1722459032502,-13.52623358,0.00010003,2]
[333762739,1722459032570,-136.47376642,0.00010003,2]
[333762740,1722459032579,-150.0,0.00010013,2]
[333762741,1722459032589,-150.0,0.00010013,2]
[333762742,1722459032598,-150.0,0.00010017,2]
[333762743,1722459032607,-150.0,0.00010029,2]
[333762744,1722459032618,-183.47,0.00010043,2]
[333762745,1722459032627,-150.0,0.00010045,2]
[333762746,1722459032637,-150.0,0.0001006,2]
[333762747,1722459032646,-150.0,0.00010061,2]
[333762748,1722459032656,-150.0,0.00010076,2]
[333762749,1722459032667,-150.0,0.00010082,2]
[333762750,1722459032678,-150.0,0.00010092,2]
[333762751,1722459032687,-150.0,0.00010107,2]
[333762752,1722459032696,-150.0,0.00010119,2]
[333762753,1722459032705,-150.0,0.00010123,2]
[333762754,1722459032715,-150.0,0.00010139,2]
[333762755,1722459032725,-150.0,0.00010146,2]
[333762756,1722459032735,-150.0,0.00010154,2]
[333762757,1722459032744,-150.0,0.0001017,2]
[333762758,1722459032755,-150.0,0.00010177,2]
[333762759,1722459032764,-150.0,0.00010186,2]
[333762760,1722459032773,-700.0,0.000102,3]
[333762761,1722459032782,-150.0,0.00010202,2]
[333762762,1722459032791,-150.0,0.00010211,2]
[333762763,1722459032801,-420.0,0.00010217,2]
[333762764,1722459032810,-150.0,0.00010217,2]
[333762765,1722459032819,-179.02,0.00010229,2]
[333762766,1722459032829,-150.0,0.00010233,2]
[333762767,1722459032839,-150.0,0.00010235,2]
[333762768,1722459032849,-150.0,0.00010249,2]
[333762769,1722459032858,-150.0,0.00010254,2]
[333762770,1722459032867,-150.0,0.00010264,2]
[333762771,1722459032876,-150.0,0.00010275,2]
[333762772,1722459032885,-150.0,0.0001028,2]
[333762773,1722459032894,-150.0,0.00010292,2]
[333762774,1722459032903,-150.0,0.00010296,2]
[333762775,1722459032912,-1400.0,0.000103,3]
[333762776,1722459032923,-150.0,0.00010311,2]
[333762777,1722459032933,-150.0,0.00010327,2]
[333762778,1722459032943,-150.0,0.0001034,2]
[333762779,1722459032953,-150.0,0.00010343,2]
[333762780,1722459032962,-150.0,0.0001035,2]
[333762781,1722459032972,-150.0,0.00010359,2]
[333762782,1722459032981,-150.0,0.00010374,2]
[333762783,1722459032991,-150.0,0.0001039,2]
[333762784,1722459033000,-2200.0,0.000104,3]
[333762785,1722459033011,-150.0,0.00010405,2]
[333762786,1722459033020,-150.0,0.00010406,2]
[333762787,1722459033030,-150.0,0.00010408,2]
[333762788,1722459033039,-150.0,0.00010421,2]
[333762789,1722459033049,-150.0,0.00010437,2]
[333762790,1722459033058,-746.33,0.00010439,2]
[333762791,1722459033067,-150.0,0.00010453,2]
[333762792,1722459033076,-150.0,0.00010466,2]
[333762793,1722459033085,-150.0,0.00010468,2]
[333762794,1722459033095,-150.0,0.00010469,2]
[333762795,1722459033105,-150.0,0.00010484,2]
[333762796,1722459033115,-150.0,0.000105,2]
[333762797,1722459033124,-2900.0,0.000105,3]
[333762798,1722459033134,-150.0,0.00010515,2]
[333762799,1722459033143,-150.0,0.00010524,2]
[333762800,1722459033153,-150.0,0.00010531,2]
[333762801,1722459033163,-150.0,0.00010534,2]
[333762802,1722459033173,-150.0,0.00010547,2]
[333762803,1722459033183,-150.0,0.00010563,2]
[333762804,1722459033193,-150.0,0.00010578,2]
[333762805,1722459033203,-150.0,0.00010582,2]
[333762806,1722459033212,-150.0,0.00010594,2]
[333762807,1722459033222,-150.0,0.00010599,2]
[333762808,1722459033231,-5022.5138,0.000106,2]
[333762809,1722459033241,-3600.0,0.000106,3]
[333762810,1722459033251,-150.0,0.0001061,2]
[333762811,1722459033261,-150.0,0.0001062,2]
[333762812,1722459033271,-150.0,0.00010625,2]
[333762813,1722459033280,-150.0,0.00010639,2]
[333762814,1722459033291,-150.0,0.00010641,2]
[333762815,1722459033301,-150.0,0.00010657,2]
[333762816,1722459033310,-150.0,0.00010663,2]
[333762817,1722459033320,-150.0,0.00010672,2]
[333762818,1722459033329,-150.0,0.00010688,2]
[333762819,1722459033339,-150.0,0.00010697,2]
[333762820,1722459033348,-700.0,0.000107,3]
[333762821,1722459033358,-150.0,0.00010704,2]
[333762822,1722459033367,-150.0,0.00010719,2]
[333762823,1722459033607,-150.0,0.00010728,2]
[333762824,1722459033616,-150.0,0.00010735,2]
[333762825,1722459033626,-150.0,0.00010751,2]
[333762826,1722459033635,-150.0,0.00010755,2]
[333762827,1722459033644,-150.0,0.00010767,2]
[333762828,1722459033654,-150.0,0.00010782,2]
[333762829,1722459033663,-150.0,0.00010792,2]
[333762830,1722459033674,-150.0,0.00010798,2]
[333762831,1722459033683,-700.0,0.000108,3]
[333762832,1722459033693,-150.0,0.00010813,2]
[333762833,1722459033702,-150.0,0.00010814,2]
[333762834,1722459033711,-150.0,0.00010829,2]
[333762835,1722459033721,-150.0,0.00010845,2]
[333762836,1722459033730,-150.0,0.00010857,2]
[333762837,1722459033739,-150.0,0.00010861,2]
[333762838,1722459033749,-150.0,0.00010871,2]
[333762839,1722459033759,-150.0,0.00010876,2]
[333762840,1722459033769,-528.0,0.00010878,2]
[333762841,1722459033779,-23112.75573161,0.0001088,2]
[333762843,1722459038073,-500.0,0.0001088,2]
[333762844,1722459038085,-6045.54035109,0.0001088,2]
[333762845,1722459038105,-973.435,0.0001088,2]
[333762846,1722459038333,-1296.43514,0.0001088,2]
[333762847,1722459038345,-402.83806168,0.0001088,2]
[333762871,1722459038657,-6751.09192479,0.0001088,2]
[333762873,1722459038667,-150.0,0.00010892,2]
[333762875,1722459038677,-802.2047,0.00010898,2]
[333762877,1722459038686,-195.39777565,0.00010899,2]
[333762879,1722459038695,-195.39777561,0.00010899,2]
[333762881,1722459038705,-195.39777561,0.00010899,2]
[333762883,1722459038714,-195.39777561,0.00010899,2]
[333762885,1722459038723,-195.39777561,0.00010899,2]
[333762887,1722459038733,-195.39777561,0.00010899,2]
[333762889,1722459038742,-195.39777561,0.00010899,2]
[333762891,1722459038752,-195.39777561,0.000109,2]
[333762893,1722459038762,-195.39777561,0.000109,2]
[333762895,1722459038772,-1000.0,0.000109,2]
[333762897,1722459038781,-500.0,0.000109,2]
[333762899,1722459038790,-195.39777561,0.000109,2]
[333762901,1722459038800,-700.0,0.000109,3]
[333762903,1722459038810,-7500.0,0.000109,2]
[333762905,1722459038820,-2848.08856528,0.000109,2]
[333762907,1722459038829,-271.67587267,0.000109,2]
[333762909,1722459038838,-485.40005773,0.000109,2]
[333762911,1722459038849,-150.0,0.00010908,2]
[333762913,1722459038858,-500.0,0.00010912,2]
[333762914,1722459038868,-150.0,0.00010922,2]
[333762915,1722459038877,-150.0,0.00010924,2]
[333762916,1722459038887,-150.0,0.00010928,2]
[333762917,1722459038896,-150.0,0.00010939,2]
[333762918,1722459038905,-120.33112341,0.00010955,2]
[333763035,1722459041544,-29.66887659,0.00010955,2]
[333763037,1722459041554,-150.0,0.00010971,2]
[333763039,1722459041565,-170.92298413,0.00010986,2]
[333763041,1722459041574,-153.56013928,0.00010986,2]
[333763044,1722459041594,-64.71720629,0.00010986,2]
[333763046,1722459041603,-222.081132,0.00010986,2]
[333763048,1722459041613,-150.0,0.00010986,2]
[333763050,1722459041622,-1331.33859812,0.00010998,2]
[333763052,1722459041634,-1289.60406058,0.00010998,2]
[333763054,1722459041643,-537.5845681,0.00010998,2]
[333763056,1722459041654,-3416.9954092,0.00010998,2]
[333763058,1722459041665,-33142.4335338,0.00010998,2]
[333763065,1722459041731,-4540.38,0.00010998,2]
[333763079,1722459041856,-12723.0509909,0.00010998,2]
[333763080,1722459041866,-831.0,0.00011,2]
[333763082,1722459041875,-35851.43795142,0.00011,2]
[333763195,1722459043115,-910.28925678,0.0001045,2]
[333763197,1722459043124,-142877.03491516,0.00011,2]
[333763203,1722459043172,-6482.1757,0.00011,2]
[333763205,1722459043187,-240101.81990412,0.00011,2]
[333763217,1722459043285,-361.36930996,0.00011,2]
[333763369,1722459047364,-1076.2624949,0.00010998,2]
[333763370,1722459047373,-67315.24750508,0.00011,2]
[333763371,1722459047384,-340.84086494,0.00011,2]
[333763372,1722459047424,-2490.04885821,0.0001045,2]
[333763373,1722459047435,-115.95540694,0.00011,2]
[333763374,1722459047481,-340.19,0.00011,2]
[333763375,1722459047544,-1347.9,0.00011,2]
[333763376,1722459047595,-2059.127034,0.00011,2]
[333763377,1722459047695,-1942.24,0.00011,2]
[333763378,1722459047718,-97415.44535579,0.00011,2]
[333763379,1722459047739,-749.0,0.00011,2]
[333763381,1722459047762,-31261.55464419,0.00011,2]
[333763383,1722459047788,-1617.5,0.00011,2]
[333763407,1722459077912,180.01,0.0001337,30]
[333763409,1722459195949,1000.0,0.00024977,120]
[333763410,1722459334595,-157.27011438,0.00010046,2]
[333763411,1722459334623,-3414.5,0.00010145,2]
[333763412,1722459334651,-179.56,0.00010146,2]
[333763413,1722459334679,-151.66,0.00010165,2]
[333763414,1722459334707,-157.27011434,0.00010217,2]
[333763415,1722459334735,-157.27011434,0.00010388,2]
[333763416,1722459334762,-157.27011434,0.00010558,2]
[333763417,1722459334790,-281.887485,0.00010664,2]
[333763418,1722459334817,-157.27011434,0.00010729,2]
[333763419,1722459334844,-281.887485,0.00010797,2]
[333763420,1722459334872,-3000.0,0.0001089,2]
[333763421,1722459334900,-219.0,0.00010899,2]
[333763422,1722459334930,-2031.3223,0.000109,2]
[333763423,1722459334958,-1980.1273,0.000109,2]
[333763424,1722459334985,-7500.0,0.000109,2]
[333763425,1722459335013,-2347.3969,0.000109,2]
[333763426,1722459335042,-157.27011434,0.000109,2]
[333763427,1722459335069,-488.8288,0.000109,2]
[333763428,1722459335098,-500.0,0.00010912,2]
[333763429,1722459335131,-281.887485,0.00010931,2]
[333763430,1722459335158,-156.61,0.00010959,2]
[333763431,1722459335184,-783.1,0.00010959,2]
[333763432,1722459335212,-150.0,0.00010997,2]
[333763433,1722459335238,-5844.1354559,0.00010998,2]
[333763434,1722459335265,-422.1247937,0.00010998,2]
[333763435,1722459335291,-1083.975746,0.00010998,2]
[333763436,1722459335318,-32189.6095831,0.00010998,2]
[333763437,1722459335370,-8659.76598022,0.00010999,2]
[333763440,1722459552688,165.0,0.0001337,30]
[333763441,1722460065109,150.0,7.753e-05,2]
[333763442,1722460065131,0.86,7.753e-05,2]
[333763443,1722460110905,150.0,7.753e-05,2]
[333763444,1722460110926,150.0,7.753e-05,2]
[333763445,1722460110946,150.0,7.753e-05,2]
[333763446,1722460115607,227.57161283,7.753e-05,2]
[333763447,1722460120619,151.25,0.0001337,30]
[333763448,1722460145470,227.57161283,7.753e-05,2]
[333763451,1722460220080,500.0,0.00027,120]
[333763463,1722460233750,-209.76938948,8.168e-05,2]
[333763464,1722460233760,-466.52311548,8.219e-05,2]
[333763465,1722460233783,-3.1723378,8.219e-05,2]
[333763466,1722460233792,-776.8,8.219e-05,2]
[333763467,1722460233802,-158.3996122,9.642e-05,2]
[333763468,1722460233898,-91.6003878,9.642e-05,2]
[333763469,1722460233908,-182.63,9.686e-05,2]
[333763470,1722460233918,-4281.74415822,9.744e-05,2]
[333763471,1722460233985,-2827.19584178,9.744e-05,2]
[333763472,1722460233996,-300.0,9.822e-05,2]
[333763473,1722460234006,-2000.0,9.823e-05,2]
[333763474,1722460234016,-496.89,9.826e-05,2]
[333763475,1722460234025,-150.0,9.887e-05,2]
[333763476,1722460234035,-150.0,9.888e-05,2]
[333763477,1722460234045,-150.0,9.888e-05,2]
[333763478,1722460234055,-150.0,9.888e-05,2]
[333763479,1722460234065,-3576.16415822,9.888e-05,2]
[333763480,1722460234081,-6423.82584178,9.888e-05,2]
[333763481,1722460234092,-9275.38,9.917e-05,2]
[333763482,1722460234102,-183.3,9.941e-05,2]
[333763483,1722460234111,-1197.8792,9.946e-05,2]
[333763484,1722460234121,-1250.0,0.0001,2]
[333763485,1722460234132,-181.57,0.00010265,2]
[333763486,1722460234143,-2354.28,0.00010265,2]
[333763487,1722460234153,-499.99,0.00010268,2]
[333763488,1722460234162,-1000.0,0.00010319,2]
[333763489,1722460234172,-776.8,0.0001048,2]
[333763490,1722460234182,-161.191458,0.00010664,2]
[333763491,1722460234192,-204.979458,0.00010664,2]
[333763492,1722460234201,-158.512928,0.00010664,2]
[333763493,1722460234211,-1203.0,0.00010675,2]
[333763494,1722460234221,-5833.0,0.00010675,2]
[333763495,1722460234231,-5125.0,0.00010675,2]
[333763497,1722460234241,-1760.653,0.00010675,2]
[333763499,1722460234251,-420.0,0.00010804,2]
[333763501,1722460234261,-3000.0,0.0001089,2]
[333763503,1722460234270,-940.04012856,0.000109,2]
[333763505,1722460234280,-44.00833216,0.00010931,2]
[333763507,1722460234318,-117.18312584,0.00010931,2]
[333763509,1722460234327,-158.512928,0.00010931,2]
[333763510,1722460234341,-412.606,0.00010988,2]
[333763511,1722460234350,-288.7388899,0.00010998,2]
[333763512,1722460234360,-362.9326638,0.00010998,2]
[333763513,1722460234370,-698.31639246,0.00010998,2]
[333763514,1722460234384,-1476.78718249,0.00010998,2]
[333763525,1722460238615,-1074.0,0.00010675,2]
[333763527,1722460238625,-3317.44784608,0.00010998,2]
[333763529,1722460238636,-415.86603546,0.00010998,2]
[333763532,1722460238649,-11031.05042782,0.00010998,2]
[333763534,1722460238661,-2467.74683358,0.00010998,2]
[333763536,1722460238672,-6866.22043601,0.00010998,2]
[333763538,1722460238681,-2097.5215491,0.00010998,2]
[333763540,1722460238690,-3162.93434373,0.00010998,2]
[333763541,1722460238703,-595.31549371,0.00010998,2]
[333763548,1722460238754,-282.29427162,0.00010998,2]
[333763550,1722460238765,-724.4580576,0.00010998,2]
[333763552,1722460238777,-5.03126704,0.00010998,2]
[333763554,1722460238787,-1147.0050541,0.00010998,2]
[333763556,1722460238798,-287.18799721,0.00010999,2]
[333763563,1722460238867,-8756.82595997,0.00010999,2]
[333763584,1722460240251,-9756.48499206,0.00010999,2]
[333763585,1722460240279,-25764.10715289,0.00010999,2]
[333763586,1722460240343,-2121.68807362,0.00010999,2]
[333763587,1722460240355,-13931.41268032,0.00010999,2]
[333763588,1722460240409,-1534.33133296,0.00010999,2]
[333763589,1722460240423,-958.61849815,0.00010999,2]
[333763590,1722460240437,-4531.49864661,0.00010999,2]
[333763591,1722460240450,-3118.19999998,0.00010999,2]
[333763592,1722460240480,-56614.13251342,0.00010999,2]
[333763593,1722460240492,-5274.7975192,0.00010999,2]
[333763594,1722460240541,-1300.2170592,0.00010999,2]
[333763634,1722460243270,-283.41041526,0.00010999,2]
[333763636,1722460243432,-1273.17437998,0.00010999,2]
[333763637,1722460243444,-2527.99363035,0.00010999,2]
[333763638,1722460243514,-3253.59999982,0.00010999,2]
[333763639,1722460243528,-360.25679982,0.00010999,2]
[333763640,1722460243542,-76912.35270541,0.00010999,2]
[333763641,1722460243553,-500.0,0.00010999,2]
[333763642,1722460243562,-158.31143856,0.00010999,2]
[333763643,1722460243571,-730.0,0.00011,2]
[333763644,1722460243581,-1485.40432652,0.00011,2]
[333763645,1722460243590,-225038.25472121,0.00011,2]
[333763646,1722460243620,-3484.0,0.00011,2]
[333763647,1722460243631,-12932.2,0.00011,2]
[333763648,1722460243642,-24999.9999,0.00011,2]
[333763653,1722460243709,-3515.17502251,0.00011,2]
[333763656,1722460243732,-1605.75,0.00011,2]
[333763721,1722460247147,-330.641,0.00011,2]
[333763722,1722460247180,-2207.1800953,0.00011,2]
[333763723,1722460247204,-324.37897787,0.00011,2]
[333763724,1722460247216,-1616.55,0.00011,2]
[333763725,1722460247227,-807.1,0.00011,2]
[333763726,1722460247251,-259.61936,0.00011,2]
[333763727,1722460247263,-644.65017,0.00011,2]
[333763728,1722460247273,-1210.3094896,0.00011,2]
[333763729,1722460247318,-4445.44271488,0.00011,2]
[333763730,1722460247329,-6519.14488,0.00011,2]
[333763731,1722460247342,-1202.51487199,0.00011,2]
[333763732,1722460247374,-1343.41569,0.00011,2]
[333763733,1722460247385,-3360.90755,0.00011,2]
[333763734,1722460247934,-0.36958914,0.00011,2]
[333763735,1722460259111,150.0,7.753e-05,2]
[333763736,1722460259134,77.57161283,7.753e-05,2]
[333763737,1722460364512,227.57161283,7.753e-05,2]
[333763739,1722460393090,1000.0,0.00026282,120]
[333763740,1722460394478,150.0,7.753e-05,2]
[333763741,1722460394498,77.57161283,7.753e-05,2]
[333763742,1722460508504,150.0,7.753e-05,2]
[333763743,1722460508543,77.57161283,7.753e-05,2]
[333763744,1722460523494,227.57161283,7.753e-05,2]
[333763745,1722460621542,227.57161283,7.753e-05,2]
[333763746,1722460633358,296.0,0.0001789,120]
[333763747,1722460633899,296.0,0.0001788,120]
[333763748,1722460635232,296.0,0.0001787,120]
[333763749,1722460635360,296.0,0.0001789,120]
[333763750,1722460635600,296.0,0.0001788,120]
[333763751,1722460636469,296.0,0.0001787,120]
[333763752,1722460636745,296.0,0.0001789,120]
[333763753,1722460636984,296.0,0.0001788,120]
[333763754,1722460637197,296.0,0.0001789,120]
[333763755,1722460637647,300.0,0.0001788,120]
[333763756,1722460665886,201.58,0.0001337,30]
[333763757,1722460752999,150.5,0.0001789,120]
[333763758,1722460753474,150.5,0.0001788,120]
[333763759,1722460754488,150.5,0.0001787,120]
[333763760,1722460755054,150.5,0.0001789,120]
[333763761,1722460755587,150.5,0.0001788,120]
[333763762,1722460757922,249.5,0.0001787,120]
[333763767,1722461068239,150.0,7.816e-05,2]
[333763768,1722461068260,50.96988889,7.816e-05,2]
[333763770,1722461138623,184.78,0.0001337,30]
[333763789,1722461170540,150.0,7.816e-05,2]
[333763790,1722461170562,77.57161283,7.816e-05,2]
[333763793,1722461272532,150.0,7.816e-05,2]
[333763794,1722461272556,77.57161283,7.816e-05,2]
[333763799,1722461303921,227.57161283,7.816e-05,2]
[333763801,1722461381937,150.0,7.816e-05,2]
[333763802,1722461381960,77.57161283,7.816e-05,2]
[333763835,1722461431391,-710.26876103,8.219e-05,2]
[333763837,1722461431403,-147.61123897,8.219e-05,2]
[333763839,1722461431413,-300.0,9.303e-05,2]
[333763841,1722461431422,-300.0,9.303e-05,2]
[333763842,1722461431431,-200.0,9.304e-05,2]
[333763843,1722461431440,-11248.62466205,9.304e-05,2]
[333763844,1722461431452,-11107.41431585,9.304e-05,2]
[333763845,1722461431600,-640.85828944,9.304e-05,2]
[333763846,1722461431612,-800.07111468,9.304e-05,2]
[333763847,1722461431643,-93.03161798,9.304e-05,2]
[333763848,1722461431652,-250.0,9.322e-05,2]
[333763849,1722461431665,-150.0,9.323e-05,2]
[333763850,1722461431675,-5551.92,9.324e-05,2]
[333763851,1722461431684,-1218.23,9.377e-05,2]
[333763852,1722461431694,-334.37,9.424e-05,2]
[333763853,1722461431703,-3755.56,9.439e-05,2]
[333763854,1722461431713,-227.57161283,9.474e-05,2]